bitfinex-derivatives/quotes_ETHF0:USTF0_20210111
["timestamp","ask_amount","ask_price","bid_price","bid_amount"]
[1610366881157,6.2976,1048.7,1044.6,43.85667189]
[1610366881355,8.3436,1048.7,1044.7,1.46216527]
[1610366881556,4.00959,1047.2,1046.7,4.00959]
[1610366881957,6.44079,1047.2,1044.8,28.3]
[1610366882355,6.44079,1047.2,1044.8,37.3]
[1610366882956,6.44079,1047.2,1044.9,1.46166479]
[1610366883158,6.44079,1047.2,1044.9,3.87766479]
[1610366883358,6.44079,1047.2,1045.0,28.3]
[1610366883359,2.4312,1047.2,1045.0,28.3]
[1610366883557,2.4312,1047.2,1047.1,4.00959]
[1610366883958,2.4312,1047.2,1046.2,2.3931]
[1610366884159,2.4312,1047.2,1046.3,28.3]
[1610366884358,2.4312,1047.2,1047.1,9.0]
[1610366885058,2.046,1048.7,1047.1,9.0]
[1610366885458,4.00959,1047.9,1047.6,4.00959]
[1610366885660,5.83809,1047.9,1047.6,4.00959]
[1610366885859,1.8285,1047.9,1047.6,13.00959]
[1610366886062,1.8285,1047.9,1047.6,41.30959]
[1610366886859,4.70456468,1048.6,1047.6,41.30959]
[1610366887059,4.70456468,1048.6,1047.6,43.79509]
[1610366887459,2.046,1048.7,1048.5,4.00959]
[1610366887660,65.1386,1050.0,1048.5,32.30959]
[1610366887859,65.1386,1050.0,1048.5,41.30959]
[1610366888262,65.1386,1050.0,1048.5,43.54659]
[1610366889159,7.98165649,1049.9,1048.5,43.54659]
[1610366889560,7.98165649,1049.9,1049.8,4.00959]
[1610366889959,7.98165649,1049.9,1049.6,1.8394]
[1610366890160,7.98165649,1049.9,1049.8,9.0]
[1610366890360,65.1386,1050.0,1049.8,37.3]
[1610366890861,65.1386,1050.0,1049.8,9.0]
[1610366891264,65.1386,1050.0,1049.8,39.0]
[1610366891463,65.1386,1050.0,1049.8,43.00959]
[1610366892262,65.1386,1050.0,1049.8,9.0]
[1610366892464,65.1386,1050.0,1049.8,39.0]
[1610366893563,65.1386,1050.0,1049.9,4.00959]
[1610366893765,65.1386,1050.0,1049.9,34.00959]
[1610366893964,65.1386,1050.0,1049.9,43.00959]
[1610366894868,6.2528,1053.1,1049.9,43.00959]
[1610366895466,4.00959,1052.9,1052.2,4.00959]
[1610366895665,5.69309,1052.9,1050.3,75.4372]
[1610366895867,5.69309,1052.9,1050.4,30.0]
[1610366896066,5.69309,1052.9,1050.4,32.1757]
[1610366896265,5.69309,1052.9,1050.4,41.1757]
[1610366897174,7.97643289,1052.8,1050.4,41.1757]
[1610366897567,7.97643289,1052.8,1052.4,4.00959]
[1610366897967,7.97643289,1052.8,1052.4,13.00959]
[1610366898368,7.97643289,1052.8,1052.4,9.0]
[1610366898967,7.97643289,1052.8,1051.8,39.0]
[1610366899173,7.97643289,1052.8,1051.8,9.0]
[1610366899367,7.97643289,1052.8,1051.7,2.2243]
[1610366899568,7.97643289,1052.8,1051.8,4.00959]
[1610366900069,1.894,1052.8,1051.9,30.0]
[1610366900467,1.894,1052.8,1051.9,9.0]
[1610366900774,1.6835,1052.9,1051.9,9.0]
[1610366900975,1.9156,1053.5,1051.9,9.0]
[1610366901178,1.8748,1053.8,1051.9,9.0]
[1610366901382,7.52228334,1052.7,1051.9,9.0]
[1610366901789,7.52228334,1052.7,1051.8,9.0]
[1610366901978,9.43398334,1052.7,1051.8,9.0]
[1610366902378,9.43398334,1052.7,1051.7,2.2243]
[1610366902579,9.43398334,1052.7,1051.6,61.3409]
[1610366902784,9.43398334,1052.7,1051.8,9.0]
[1610366902990,7.52253332,1052.6,1051.8,9.0]
[1610366903580,7.52253332,1052.6,1052.1,4.00959]
[1610366903972,7.52253332,1052.6,1052.1,13.00959]
[1610366904178,7.52261089,1052.7,1052.1,43.00959]
[1610366904674,7.52261089,1052.7,1052.1,13.00959]
[1610366905275,7.52261089,1052.7,1052.1,4.00959]
[1610366905475,7.52261089,1052.7,1052.6,4.00959]
[1610366905674,9.39397635,1053.0,1052.6,4.00959]
[1610366905874,7.52137635,1053.0,1052.6,4.00959]
[1610366906773,9.41697635,1053.0,1052.1,9.0]
[1610366906974,9.41697635,1053.0,1051.9,1.6149]
[1610366907175,9.41697635,1053.0,1051.6,63.247]
[1610366907577,9.41697635,1053.0,1052.6,4.00959]
[1610366908375,7.52333332,1052.9,1052.6,13.00959]
[1610366909076,7.52333332,1052.9,1051.9,1.7299]
[1610366909476,7.52333332,1052.9,1052.8,4.00959]
[1610366909876,2.3427,1053.1,1051.9,1.7299]
[1610366910476,7.51889387,1053.4,1051.9,1.7299]
[1610366911278,7.51835952,1053.0,1051.9,1.7299]
[1610366911676,7.51835952,1053.0,1052.9,4.00959]
[1610366912677,7.51863021,1053.4,1052.9,4.00959]
[1610366913678,7.51863021,1053.4,1052.7,1.8531]
[1610366913679,7.51863021,1053.4,1053.1,4.00959]
[1610366913879,7.51863021,1053.4,1052.7,1.8531]
[1610366914077,4.00959,1054.3,1052.7,1.8531]
[1610366914078,1.5898,1053.6,1052.7,1.8531]
[1610366914277,1.5898,1053.6,1051.9,1.7299]
[1610366914477,1.5898,1053.6,1052.4,53.5097]
[1610366914876,1.5898,1053.6,1052.4,55.8297]
[1610366915479,7.52016303,1053.5,1052.4,55.8297]
[1610366915680,7.52016303,1053.5,1053.4,4.00959]
[1610366915880,9.40426303,1053.5,1053.4,4.00959]
[1610366917078,9.40426303,1053.5,1052.7,1.889]
[1610366917280,7.52016303,1053.5,1052.7,1.889]
[1610366917679,4.00959,1052.8,1052.7,1.889]
[1610366917880,4.00959,1052.8,1052.4,53.5097]
[1610366918081,4.00959,1052.8,1051.3,68.9284]
[1610366918280,4.00959,1052.8,1050.0,0.29136648]
[1610366918481,4.00959,1052.8,1049.9,0.29151216]
[1610366918879,4.00959,1052.8,1049.6,0.2914887]
[1610366919080,4.00959,1052.8,1049.5,0.29153095]
[1610366919481,4.00959,1052.8,1049.2,0.29164009]
[1610366919680,4.00959,1050.9,1049.2,0.29164009]
[1610366919882,2.028,1050.9,1049.3,0.29166983]
[1610366920080,2.028,1050.9,1049.3,2.23656983]
[1610366920481,2.028,1050.9,1049.4,0.29189769]
[1610366920786,2.028,1050.9,1049.3,2.23675258]
[1610366921190,2.2858,1051.2,1049.3,1.9449]
[1610366921388,2.0297,1050.9,1049.3,1.9449]
[1610366921589,2.0297,1050.9,1050.3,4.00959]
[1610366921789,2.0297,1050.9,1049.7,1.7713]
[1610366922388,7.53273461,1050.8,1049.7,1.7713]
[1610366922886,7.53273461,1050.8,1049.3,1.9449]
[1610366923487,7.53273461,1050.8,1048.1,76.2989]
[1610366923689,4.00959,1048.5,1048.4,4.00959]
[1610366923889,4.00959,1048.5,1047.2,0.29228687]
[1610366924289,1.9636,1048.9,1047.2,0.29228687]
[1610366924489,1.9636,1048.9,1047.2,2.41608687]
[1610366925189,1.9636,1048.9,1047.2,2.1238]
[1610366925890,4.00959,1049.4,1047.2,2.1238]
[1610366927691,2.3005,1049.5,1047.2,2.1238]
[1610366928090,7.53859644,1049.3,1047.2,2.1238]
[1610366929090,7.53859644,1049.3,1046.1,0.29256514]
[1610366929291,7.53859644,1049.3,1046.0,0.2925995]
[1610366929491,13.36238025,1049.4,1046.0,0.2925995]
[1610366929692,4.00959,1047.1,1046.9,4.00959]
[1610366929891,4.00959,1047.1,1046.0,2.2685995]
[1610366930290,4.00959,1047.1,1046.0,1.976]
[1610366931390,6.24099,1047.1,1046.0,1.976]
[1610366931591,4.00959,1046.9,1046.3,4.00959]
[1610366932189,2.2314,1047.1,1046.3,4.00959]
[1610366932391,2.0637,1047.8,1046.3,6.04949]
[1610366933190,2.0637,1047.8,1046.3,36.04949]
[1610366933391,2.0637,1047.8,1046.4,30.0]
[1610366933590,61.36289,1049.2,1047.7,4.00959]
[1610366933790,61.36289,1049.2,1047.7,5.50339]
[1610366933992,57.3533,1049.2,1047.7,5.50339]
[1610366935094,57.3533,1049.2,1047.8,30.0]
[1610366935493,6.1963,1049.3,1047.8,30.0]
[1610366935693,6.1963,1049.3,1049.2,4.00959]
[1610366935893,4.00959,1051.5,1049.2,6.09239]
[1610366936093,12.571,1053.6,1049.2,6.09239]
[1610366936893,7.53204524,1053.5,1049.2,36.09239]
[1610366937093,9.79854524,1053.5,1049.2,36.09239]
[1610366937595,4.00959,1051.8,1051.6,4.00959]
[1610366937795,5.95929,1051.8,1051.6,4.00959]
[1610366937995,1.9497,1051.8,1049.2,2.37475225]
[1610366938396,7.53074558,1051.7,1049.2,2.0828]
[1610366939597,4.00959,1050.1,1049.8,4.00959]
[1610366939999,4.00959,1050.1,1049.2,2.0828]
[1610366940999,4.00959,1050.1,1047.8,0.29228169]
[1610366941399,4.00959,1050.1,1047.7,1.4938]
[1610366941600,4.00959,1048.6,1048.5,4.00959]
[1610366941801,2.0933,1049.2,1048.5,4.00959]
[1610366942200,2.0933,1049.2,1048.5,6.49079]
[1610366942400,2.0933,1049.2,1048.5,2.4812]
[1610366943199,2.0933,1049.2,1048.1,2.0336]
[1610366943400,2.0933,1049.2,1047.8,1.8575]
[1610366944401,2.0933,1049.2,1046.4,0.29264167]
[1610366945001,2.0933,1049.2,1046.4,30.29264167]
[1610366945203,2.0933,1049.2,1046.5,0.29261701]
[1610366945401,2.0933,1049.2,1046.4,30.0]
[1610366945700,7.10411189,1049.1,1046.4,30.0]
[1610366945902,7.10411189,1049.1,1046.7,0.29257636]
[1610366946102,7.10411189,1049.1,1046.7,2.51727636]
[1610366946302,7.10411189,1049.1,1046.8,30.0]
[1610366946503,7.10411189,1049.1,1047.1,0.29243006]
[1610366946702,7.10411189,1049.1,1047.1,1.99413006]
[1610366947102,4.00959,1049.4,1047.1,1.7017]
[1610366947705,6.1836,1050.1,1047.1,1.7017]
[1610366948205,4.00959,1047.5,1047.3,4.00959]
[1610366948406,1.5567,1048.9,1047.3,4.00959]
[1610366949306,1.5567,1048.9,1047.1,1.7017]
[1610366950007,2.1984,1049.2,1047.1,1.7017]
[1610366950214,4.00959,1047.8,1047.2,4.00959]
[1610366951007,1.9672,1048.5,1047.2,4.00959]
[1610366951207,1.9672,1048.5,1047.2,34.00959]
[1610366951810,2.1984,1049.2,1047.2,34.00959]
[1610366952014,2.1984,1049.2,1047.2,102.02869]
[1610366952211,6.1836,1050.1,1047.2,98.31157786]
[1610366952610,6.1836,1050.1,1047.6,0.29235546]
[1610366952812,4.00959,1049.5,1049.1,4.00959]
[1610366953014,1.862,1049.6,1049.1,4.00959]
[1610366953411,1.862,1049.6,1049.1,35.63199]
[1610366953615,1.862,1049.6,1049.1,5.63199]
[1610366954016,6.1836,1050.1,1049.1,5.63199]
[1610366954218,6.1836,1050.1,1049.1,1.6224]
[1610366954810,4.00959,1049.6,1049.4,4.00959]
[1610366955210,6.1836,1050.1,1049.4,4.00959]
[1610366955419,6.1836,1050.1,1049.4,6.48009]
[1610366956021,6.1836,1050.1,1049.4,36.48009]
[1610366956816,6.1836,1050.1,1050.0,4.00959]
[1610366957017,6.1836,1050.1,1050.0,36.35019]
[1610366957819,6.1836,1050.1,1050.0,16.35019]
[1610366958032,56.3944,1051.0,1050.0,18.42849]
[1610366958827,56.3944,1051.0,1050.9,4.00959]
[1610366959030,56.3944,1051.0,1050.9,6.30959]
[1610366960922,56.3944,1051.0,1050.9,1.9328]
[1610366961522,4.00959,1051.7,1050.9,1.9328]
[1610366961923,4.00959,1051.7,1050.3,2.3062]
[1610366962324,6.24939,1051.7,1050.3,2.3062]
[1610366962839,2.2398,1051.7,1051.1,4.00959]
[1610366963625,2.2398,1051.7,1051.1,34.00959]
[1610366963825,5.9651,1053.1,1051.1,35.69879]
[1610366964825,5.9651,1053.1,1053.0,4.00959]
[1610366965631,5.9651,1053.1,1053.0,34.00959]
[1610366966627,5.9651,1053.1,1053.0,4.00959]
[1610366966827,58.3199,1053.3,1053.0,4.00959]
[1610366967528,58.3199,1053.3,1053.0,34.00959]
[1610366968431,6.1953,1056.1,1053.0,34.00959]
[1610366968828,4.00959,1055.4,1055.1,4.00959]
[1610366969029,6.41479,1055.4,1055.1,4.00959]
[1610366969428,2.4052,1055.4,1055.1,4.00959]
[1610366969928,59.61470781,1056.2,1055.1,4.00959]
[1610366970129,5.9168,1057.3,1054.5,1.6298]
[1610366970728,4.00959,1055.4,1055.1,4.00959]
[1610366970928,5.67739,1055.4,1055.1,4.00959]
[1610366971730,1.6678,1055.4,1055.1,4.00959]
[1610366972533,1.7514,1056.0,1055.1,34.00959]
[1610366972733,1.7514,1056.0,1055.9,4.00959]
[1610366972933,1.7514,1056.0,1055.1,32.0819]
[1610366973532,1.7514,1056.0,1055.2,30.0]
[1610366974432,1.7514,1056.0,1055.3,30.0]
[1610366974734,5.76099,1056.0,1055.6,4.00959]
[1610366974933,1.7514,1056.0,1055.6,4.00959]
[1610366975836,1.7514,1056.0,1055.1,2.0819]
[1610366976238,1.7514,1056.0,1055.1,32.0819]
[1610366976738,1.7514,1056.0,1055.7,4.00959]
[1610366977137,1.7514,1056.0,1055.1,2.0819]
[1610366977539,4.00959,1056.4,1055.1,2.0819]
[1610366977738,4.00959,1056.4,1055.2,30.0]
[1610366978139,4.00959,1056.4,1055.1,2.1838]
[1610366978740,4.00959,1056.4,1055.8,4.00959]
[1610366978939,4.00959,1056.4,1055.7,2.0414]
[1610366979540,4.00959,1056.4,1054.5,1.6298]
[1610366979740,4.00959,1056.4,1053.1,6.1583]
[1610366979940,4.00959,1056.4,1053.2,30.0]
[1610366980141,4.00959,1056.4,1053.2,31.5336]
[1610366980341,4.00959,1056.4,1054.1,72.2466]
[1610366980541,9.96349,1056.4,1053.8,1.7421]
[1610366980741,4.00959,1054.0,1053.8,1.7421]
[1610366981542,1.9607,1054.5,1053.2,1.5336]
[1610366982744,4.00959,1054.1,1054.0,4.00959]
[1610366982944,4.00959,1054.1,1053.2,1.5336]
[1610366983745,1.9607,1054.5,1053.2,1.5336]
[1610366983946,1.8345,1054.9,1053.2,1.5336]
[1610366984845,1.8345,1054.9,1054.8,4.00959]
[1610366985047,5.9539,1056.4,1054.8,6.03229]
[1610366985247,8.1546,1057.5,1054.8,6.03229]
[1610366985647,6.3537,1057.4,1054.8,6.03229]
[1610366986450,2.90607447,1056.7,1054.8,6.03229]
[1610366986648,4.54157447,1056.7,1054.8,6.03229]
[1610366986848,4.54157447,1056.7,1056.6,4.00959]
[1610366987448,4.54157447,1056.7,1055.1,2.3163]
[1610366988849,4.54157447,1056.7,1056.4,4.00959]
[1610366989050,2.90270193,1056.6,1056.4,4.00959]
[1610366989250,2.90270193,1056.6,1055.9,2.1658]
[1610366990251,2.90270193,1056.6,1055.1,2.3163]
[1610366990951,6.91229193,1056.6,1056.4,4.00959]
[1610366991151,6.91229193,1056.6,1055.8,2.4046]
[1610366991952,2.90143661,1056.5,1055.8,2.4046]
[1610366992852,2.90143661,1056.5,1056.4,4.00959]
[1610366993452,65.1833,1058.2,1056.4,4.00959]
[1610366994054,65.1833,1058.2,1056.4,6.25629]
[1610366994653,1.91866177,1058.1,1056.4,6.25629]
[1610366994852,4.00959,1057.8,1057.6,4.00959]
[1610366995453,4.00959,1057.8,1056.4,2.2467]
[1610366996055,1.9160011,1057.7,1056.4,2.2467]
[1610366996855,1.9160011,1057.7,1057.4,4.00959]
[1610366997054,1.9160011,1057.7,1057.4,6.43269]
[1610366997765,1.9160011,1057.7,1057.4,2.4231]
[1610366997962,4.00959,1057.8,1057.4,2.4231]
[1610366998857,4.00959,1057.8,1057.7,4.00959]
[1610366999062,1.8316,1058.4,1057.4,2.4231]
[1610366999259,1.8316,1058.4,1057.7,2.0344]
[1610366999457,5.7807,1059.6,1057.7,2.0344]
[1610366999857,20.81273078,1061.1,1057.7,2.0344]
[1610367000257,6.2353,1061.0,1057.7,2.0344]
[1610367000459,5.8925,1060.9,1057.7,2.0344]
[1610367000657,1.90810068,1059.6,1057.7,2.0344]
[1610367000957,4.00959,1058.3,1057.8,4.00959]
[1610367001157,4.00959,1058.3,1057.7,2.0344]
[1610367002559,2.1837,1058.6,1057.7,2.0344]
[1610367002959,6.19329,1058.6,1058.5,4.00959]
[1610367003358,4.00959,1058.6,1058.5,5.89009]
[1610367004069,2.3367,1059.6,1058.5,5.89009]
[1610367004877,4.00959,1058.9,1058.5,5.89009]
[1610367005670,4.00959,1058.9,1058.5,1.8805]
[1610367008664,4.00959,1058.9,1058.4,4.00959]
[1610367009163,2.3638,1060.1,1058.4,4.00959]
[1610367009362,2.3638,1060.1,1058.4,5.51019]
[1610367010965,2.3638,1060.1,1059.2,4.00959]
[1610367011166,2.3638,1060.1,1059.0,2.1097]
[1610367011966,1.84911472,1060.0,1059.0,2.1097]
[1610367012167,1.84911472,1060.0,1057.7,62.8975]
[1610367012967,4.00959,1058.9,1058.5,4.00959]
[1610367013167,6.28289,1058.9,1058.5,4.00959]
[1610367013568,2.2733,1058.9,1058.5,4.00959]
[1610367014169,1.6688,1059.8,1058.5,4.00959]
[1610367014369,1.6688,1059.8,1058.5,5.50909]
[1610367014971,1.6688,1059.8,1059.7,4.00959]
[1610367015169,4.00959,1060.0,1059.7,4.00959]
[1610367015574,2.3638,1060.1,1059.7,4.00959]
[1610367015770,59.7071,1060.5,1059.7,4.00959]
[1610367016972,59.7071,1060.5,1060.0,4.00959]
[1610367017875,6.3987,1061.7,1060.0,4.00959]
[1610367018275,6.0145,1062.1,1060.0,4.00959]
[1610367018985,4.00959,1060.9,1060.8,4.00959]
[1610367019185,6.42489,1060.9,1060.8,4.00959]
[1610367019579,6.42489,1060.9,1059.5,2.2821]
[1610367020201,2.4153,1060.9,1059.5,2.2821]
[1610367020386,2.194,1061.2,1059.5,2.2821]
[1610367020787,5.984,1062.9,1059.5,2.2821]
[1610367020979,4.00959,1061.2,1061.0,4.00959]
[1610367021179,5.8474,1062.8,1061.0,4.00959]
[1610367021385,2.064,1061.8,1061.0,4.00959]
[1610367023077,2.064,1061.8,1061.6,4.00959]
[1610367023477,6.2392,1064.0,1061.6,6.12589]
[1610367023680,6.25,1064.3,1061.6,6.12589]
[1610367024577,1.82837325,1064.2,1061.6,6.12589]
[1610367024777,3.94877325,1064.2,1061.6,6.12589]
[1610367024977,4.00959,1062.4,1062.1,4.00959]
[1610367025377,2.2053,1063.4,1062.1,4.00959]
[1610367025781,2.2053,1063.4,1062.1,6.12029]
[1610367026379,2.1204,1064.2,1062.1,6.12029]
[1610367026981,4.00959,1062.8,1062.1,2.1107]
[1610367027981,2.1214,1063.5,1062.1,2.1107]
[1610367028581,2.1405,1063.9,1062.1,2.1107]
[1610367028981,4.00959,1062.8,1062.3,4.00959]
[1610367029185,4.00959,1062.8,1062.1,2.1107]
[1610367029782,4.00959,1062.8,1062.0,70.7653]
[1610367030982,4.00959,1062.1,1062.0,70.7653]
[1610367031184,6.49099,1062.1,1062.0,70.7653]
[1610367034584,6.49099,1062.1,1062.0,63.1495]
[1610367034788,6.49099,1062.1,1059.4,0.28832271]
[1610367034987,4.00959,1060.8,1060.3,4.00959]
[1610367035387,4.00959,1060.8,1059.2,0.28836902]
[1610367035801,4.00959,1060.8,1059.1,0.57673804]
[1610367035802,4.00959,1060.8,1059.1,0.28842188]
[1610367035990,4.00959,1060.8,1059.0,0.28845705]
[1610367036391,4.00959,1060.8,1058.8,0.28847921]
[1610367036791,4.00959,1060.8,1058.7,0.57695841]
[1610367036792,4.00959,1060.8,1058.7,0.28849253]
[1610367036989,4.00959,1059.3,1058.7,0.28849253]
[1610367037399,4.00959,1059.3,1058.6,4.58657506]
[1610367037400,4.00959,1059.3,1058.6,4.00959]
[1610367038398,5.83329,1059.3,1058.1,0.28865629]
[1610367038790,5.83329,1059.3,1057.9,0.28869381]
[1610367038990,1.8237,1059.3,1058.4,4.00959]
[1610367040190,1.8237,1059.3,1058.4,6.02969]
[1610367040390,1.7095,1060.0,1058.4,6.02969]
[1610367040789,5.8432,1060.3,1058.4,6.02969]
[1610367041192,5.8432,1060.3,1060.2,4.00959]
[1610367042291,5.8432,1060.3,1060.1,2.2785]
[1610367043193,4.00959,1060.2,1060.1,2.2785]
[1610367043392,5.8432,1060.3,1060.1,2.2785]
[1610367045102,5.8432,1060.3,1060.1,6.28809]
[1610367046696,5.8432,1060.3,1060.1,2.2785]
[1610367046897,5.8432,1060.3,1059.2,65.4931]
[1610367047098,4.00959,1059.9,1059.4,4.00959]
[1610367047901,4.00959,1059.9,1059.2,65.4931]
[1610367049104,4.00959,1059.9,1059.5,4.00959]
[1610367049303,4.00959,1059.9,1059.5,2.0258]
[1610367051109,9.85279,1060.3,1059.7,4.00959]
[1610367052009,9.85279,1060.3,1059.5,2.0258]
[1610367053210,5.8432,1060.3,1060.1,4.00959]
[1610367053410,5.8432,1060.3,1060.1,6.05179]
[1610367054010,1.989,1061.5,1060.1,6.05179]
[1610367054212,5.877,1063.2,1060.1,6.05179]
[1610367054611,12.1105,1063.2,1060.1,6.05179]
[1610367055211,4.00959,1061.4,1060.5,4.00959]
[1610367056611,4.00959,1061.4,1060.1,2.0422]
[1610367057213,1.8654,1061.9,1060.3,4.00959]
[1610367059214,4.00959,1061.8,1061.3,4.00959]
[1610367059614,4.00959,1061.8,1060.1,2.0422]
[1610367059813,4.00959,1061.8,1059.9,54.2216]
[1610367060415,4.00959,1061.8,1059.9,54.50993503]
[1610367061216,2.2479,1062.2,1061.2,4.00959]
[1610367061416,2.2479,1062.2,1061.2,6.41259]
[1610367061616,2.2479,1062.2,1061.2,2.403]
[1610367062320,2.2479,1062.2,1060.9,1.7897]
[1610367062719,4.1098,1062.2,1060.9,1.7897]
[1610367063119,4.00959,1061.0,1060.9,1.7897]
[1610367063320,4.00959,1061.0,1059.9,54.2216]
[1610367064522,5.78719,1061.0,1059.9,54.2216]
[1610367064724,5.78719,1061.0,1059.5,2.0258]
[1610367064922,5.78719,1061.0,1058.6,0.28863458]
[1610367065123,5.78719,1061.0,1058.5,0.28860941]
[1610367065322,4.00959,1059.6,1058.9,4.00959]
[1610367066124,1.9024,1060.7,1058.9,4.00959]
[1610367066325,1.9024,1060.7,1058.9,6.37559]
[1610367066727,6.4181,1060.9,1058.9,6.37559]
[1610367066925,1.7776,1061.0,1059.0,73.2224]
[1610367067326,4.00959,1060.2,1059.7,4.00959]
[1610367067625,4.00959,1060.2,1059.0,73.2224]
[1610367069326,4.00959,1059.1,1059.0,73.2224]
[1610367072531,1.6212,1059.7,1059.0,73.2224]
[1610367073130,2.3025,1060.0,1059.0,73.2224]
[1610367073330,4.00959,1059.1,1059.0,73.2224]
[1610367074333,4.00959,1059.1,1058.8,1.607]
[1610367074533,4.00959,1059.1,1058.4,2.0201]
[1610367074734,4.00959,1059.1,1057.5,0.28877125]
[1610367075137,4.00959,1059.1,1057.3,0.28882339]
[1610367075435,4.00959,1059.1,1057.2,0.57764679]
[1610367075436,2.422,1059.3,1057.4,4.00959]
[1610367075634,2.422,1059.3,1057.4,1.8675]
[1610367077238,4.00959,1058.0,1057.8,4.00959]
[1610367077438,4.00959,1058.0,1057.4,1.8675]
[1610367079340,4.0008,1059.0,1057.4,5.87709]
[1610367079341,4.00959,1057.5,1057.4,5.87709]
[1610367079540,4.00959,1057.5,1057.4,1.8675]
[1610367080742,4.00959,1057.5,1056.4,0.28899204]
[1610367081245,4.00959,1056.5,1056.2,0.28902873]
[1610367081643,4.00959,1056.5,1055.9,0.28910377]
[1610367082046,4.00959,1056.5,1055.8,0.28913201]
[1610367082246,4.00959,1056.5,1056.0,1.9472346]
[1610367082446,1.8663,1057.5,1056.0,4.1717346]
[1610367082647,3.6825,1058.1,1056.0,4.1717346]
[1610367082950,1.8073,1058.1,1056.0,4.1717346]
[1610367083245,1.8073,1058.1,1057.0,4.00959]
[1610367083445,1.8073,1058.1,1057.0,2.1207]
[1610367083847,3.6696,1058.1,1057.0,2.1207]
[1610367084552,1.8073,1058.1,1057.0,2.1207]
[1610367084952,1.8073,1058.1,1056.5,2.4551]
[1610367085354,4.00959,1056.6,1056.5,2.4551]
[1610367085953,4.00959,1056.6,1056.5,0.6705]
[1610367086254,4.00959,1056.6,1056.0,2.2245]
[1610367086453,4.00959,1056.6,1055.1,0.28929896]
[1610367086653,4.00959,1056.6,1055.0,0.28956449]
[1610367086855,4.00959,1056.6,1054.9,0.57912898]
[1610367086856,4.00959,1056.6,1054.9,67.71313538]
[1610367087255,4.00959,1055.1,1054.9,67.4238]
[1610367090160,4.00959,1055.1,1053.9,0.28993671]
[1610367090358,5.90849,1055.1,1053.9,0.28993671]
[1610367090958,4.00959,1055.1,1054.2,0.28963313]
[1610367091158,3.6213,1055.6,1054.2,2.57123313]
[1610367091359,1.7427,1055.6,1055.5,4.00959]
[1610367091758,4.00959,1055.8,1055.5,6.46579]
[1610367092361,4.00959,1055.8,1055.5,2.4562]
[1610367093061,5.90929,1055.8,1055.5,2.4562]
[1610367093262,4.00959,1055.8,1055.5,2.4562]
[1610367093463,4.00959,1055.6,1055.5,2.4562]
[1610367093664,4.00959,1055.6,1054.7,0.28957133]
[1610367094064,6.40779,1055.6,1054.6,0.28958538]
[1610367094264,6.40779,1055.6,1054.4,0.28961635]
[1610367094565,6.40779,1055.6,1054.8,1.88352445]
[1610367094764,2.3982,1055.6,1054.8,1.88352445]
[1610367094965,4.2647,1055.6,1054.8,1.88352445]
[1610367095168,5.8861,1055.9,1054.8,2.17305017]
[1610367095365,4.00959,1055.8,1055.2,4.00959]
[1610367095766,4.00959,1055.8,1054.9,0.28949531]
[1610367096166,5.91669,1055.8,1054.9,2.17177674]
[1610367096366,5.91669,1055.8,1054.9,1.88228143]
[1610367096766,4.00959,1055.8,1054.9,1.88228143]
[1610367097472,5.8861,1055.9,1055.7,4.00959]
[1610367098668,1.8898,1057.2,1055.7,4.00959]
[1610367098867,1.8898,1057.2,1055.8,1.88071525]
[1610367099269,6.155,1058.0,1055.8,1.88071525]
[1610367099469,4.00959,1057.1,1056.8,4.00959]
[1610367099671,6.155,1058.0,1056.8,5.64839]
[1610367100472,6.155,1058.0,1056.8,7.52735967]
[1610367101471,6.155,1058.0,1057.7,4.00959]
[1610367101672,6.155,1058.0,1057.7,5.68879]
[1610367103082,6.155,1058.0,1057.7,1.6792]
[1610367103373,6.155,1058.0,1057.9,4.00959]
[1610367104274,6.155,1058.0,1057.7,1.6792]
[1610367105477,4.00959,1057.8,1057.7,1.6792]
[1610367105676,1.6026,1059.2,1057.7,1.6792]
[1610367105875,55.1439,1059.7,1057.7,1.6792]
[1610367106078,1.8622,1060.3,1058.1,66.2333]
[1610367106276,12.2395,1060.8,1058.1,67.7617]
[1610367106478,12.2395,1060.8,1058.1,97.7617]
[1610367106680,5.8895,1060.8,1058.1,97.7617]
[1610367107079,5.8895,1060.8,1058.6,0.28861342]
[1610367107279,5.8895,1060.8,1058.7,0.57717301]
[1610367107480,5.8895,1060.8,1060.7,4.00959]
[1610367107681,5.8895,1060.8,1060.7,6.16419]
[1610367108087,5.8895,1060.8,1060.7,2.1546]
[1610367108484,5.8895,1060.8,1060.7,1.7759]
[1610367110791,5.8895,1060.8,1060.2,1.5011]
[1610367111594,4.00959,1060.3,1060.2,1.5011]
[1610367111793,4.00959,1060.3,1059.3,62.7577]
[1610367112794,2.3542,1060.6,1059.3,62.7577]
[1610367112995,2.3542,1060.6,1059.3,64.8355]
[1610367113394,5.8895,1060.8,1059.3,64.8355]
[1610367113593,5.8895,1060.8,1060.6,4.00959]
[1610367113794,5.8895,1060.8,1060.6,6.00679]
[1610367114394,5.8895,1060.8,1060.6,1.9972]
[1610367114993,5.8895,1060.8,1060.6,3.8574]
[1610367115394,2.0624,1060.8,1060.6,3.8574]
[1610367115594,57.8249,1063.3,1060.7,4.00959]
[1610367117598,4.00959,1061.5,1061.0,4.00959]
[1610367117796,2.1965,1062.1,1061.0,5.87789]
[1610367117997,57.8249,1063.3,1061.0,7.94019]
[1610367118406,57.8249,1063.3,1061.0,6.07189]
[1610367119606,57.8249,1063.3,1061.0,2.0623]
[1610367121007,57.8249,1063.3,1060.6,1.9972]
[1610367121205,8.5248,1063.2,1060.4,75.5525]